[Event "LTU-chT 2019"]
[Site "Lithuania"]
[Date "2019.04.28"]
[Round "7.3"]
[White "Narmontas, Tauras"]
[Black "Bucinskas, Valdas"]
[Result "0-1"]
[ECO "B90"]
[WhiteElo "2244"]
[BlackElo "2297"]
[Annotator "NA"]
[PlyCount "102"]
[EventDate "2019.01.26"]
[EventType "team-tourn"]
[EventCountry "LTU"]
[SourceTitle "playchess.com"]
[Source "ChessBase"]
[SourceQuality "1"]
[TimeControl "40/5400+30:1800+30"]

1. e4 {[%emt 0:00:00]} c5 {[%emt 0:00:00]} 2. Nf3 {[%emt 0:00:05]} d6 {[%emt 0:00:00]} 3. d4 {[%emt 0:00:45]} cxd4 {[%emt 0:00:05]} 4. Nxd4 {[%emt 0:00:05]} Nf6 {[%emt 0:00:09]} 5. Nc3 {[%emt 0:00:25]} a6 {[%emt 0:00:23]} 6. Nb3 {[%emt 0:01:45]} e5 {[%emt 0:05:13]} 7. Bg5 {[%emt 0:02:19]} Be7 {[%emt 0:01:09]} 8. Qd3 {[%emt 0:06:09]} Be6 {[%emt 0:02:21]} 9. Rd1 {[%emt 0:09:52]} (9. Bxf6 $14 Bxf6 10. O-O-O) 9... Nbd7 {[%emt 0:04:14]} 10. Bxf6 {[%emt 0:00:20]} Nxf6 {[%emt 0:00:06]} 11. Be2 {[%emt 0:00:07]} O-O {[%emt 0:01:07]} 12. O-O {[%emt 0:03:10]} Rc8 {[%emt 0:01:19]} 13. h3 {[%emt 0:09:31]} Qc7 $15 {[%emt 0:01:03]} 14. Rfe1 {[%emt 0:09:17]} Rfd8 {[%emt 0:04:31]} 15. Bf3 {[%emt 0:00:07]} g6 {[%emt 0:12:43]} 16. Nd2 {[%emt 0:04:57]} Bf8 {[%emt 0:10:08]} 17. Nf1 {[%emt 0:03:46]} Bh6 {[%emt 0:04:47]} 18. Ne3 {[%emt 0:00:56]} Bxe3 {[%emt 0:00:55]} 19. Rxe3 {[%emt 0:09:15]} Qb6 {[%emt 0:03:25]} 20. b3 {[%emt 0:00:13]} Rc6 {[%emt 0:01:34]} 21. Be2 {[%emt 0:14:38]} Qc7 {[%emt 0:07:00]} 22. Qd2 {[%emt 0:12:35]} Rc8 {[%emt 0:02:19]} 23. Bc4 {[%emt 0:00:43]} Bxc4 {[%emt 0:09:00]} 24. bxc4 {[%emt 0:00:02]} Rxc4 {[%emt 0:00:14]} 25. Qxd6 {[%emt 0:02:17]} Qxd6 {[%emt 0:01:32]} 26. Rxd6 {[%emt 0:00:03]} Rxc3 {[%emt 0:00:15]} 27. Rxc3 {[%emt 0:00:04]} Rxc3 {[%emt 0:00:06]} 28. Rxf6 {[%emt 0:00:03]} Rxc2 {[%emt 0:00:07]} 29. Rb6 {[%emt 0:00:19]} Rxa2 {[%emt 0:00:06]} 30. Rxb7 {[%emt 0:00:04]} Kg7 {[%emt 0:00:33]} 31. g3 {[%emt 0:00:32]} h5 {[%emt 0:05:55]} 32. h4 {[%emt 0:01:36]} a5 {[%emt 0:00:13]} 33. Kg2 {[%emt 0:00:06]} a4 {[%emt 0:00:04]} 34. Kf3 {[%emt 0:00:30]} a3 {[%emt 0:00:13]} 35. Ra7 {[%emt 0:00:35]} Ra1 {[%emt 0:00:09]} 36. Rb7 {[%emt 0:00:33]} Kf6 {[%emt 0:05:39]} 37. Rb6+ {[%emt 0:00:45]} Ke7 {[%emt 0:00:07]} 38. Rb7+ {[%emt 0:00:03]} Kd6 {[%emt 0:01:31]} 39. Rxf7 {[%emt 0:01:57]} Kc5 {[%emt 0:00:25]} 40. Rf6 {[%emt 0:02:35]} Re1 {[%emt 0:00:22]} 41. Ra6 {[%emt 0:31:08]} Kb4 {[%emt 0:30:06]} 42. Rb6+ {[%emt 0:00:03]} Kc3 {[%emt 0:00:07]} 43. Rc6+ {[%emt 0:00:03]} Kb2 {[%emt 0:01:03]} 44. Rb6+ {[%emt 0:00:05]} Ka1 {[%emt 0:00:05]} 45. Rxg6 {[%emt 0:01:56]} a2 {[%emt 0:00:06]} 46. Rb6 {[%emt 0:00:29]} Rb1 {[%emt 0:00:07]} 47. Ra6 {[%emt 0:00:35]} Rb3+ {[%emt 0:00:04]} 48. Kg2 {[%emt 0:02:47]} Kb2 {[%emt 0:00:08]} 49. Rxa2+ {[%emt 0:00:16]} Kxa2 {[%emt 0:00:05]} 50. f4 {[%emt 0:00:06]} Ka3 {[%emt 0:01:28]} 51. fxe5 {[%emt 0:03:27]} Kb4 0-1

[Event "LTU-chT 2019"]
[Site "Lithuania"]
[Date "2019.04.28"]
[Round "7.4"]
[White "Viskelis, Darius"]
[Black "Muningis, Paulius"]
[Result "1/2-1/2"]
[ECO "B31"]
[WhiteElo "2242"]
[BlackElo "2146"]
[Annotator "NA"]
[PlyCount "111"]
[EventDate "2019.01.26"]
[EventType "team-tourn"]
[EventCountry "LTU"]
[SourceTitle "playchess.com"]
[Source "ChessBase"]
[SourceQuality "1"]
[TimeControl "40/5400+30:1800+30"]

1. e4 {[%emt 0:00:00]} c5 {[%emt 0:00:00]} 2. Nf3 {[%emt 0:00:00]} Nc6 {[%emt 0:05:39]} 3. Bb5 {[%emt 0:00:00]} g6 {[%emt 0:12:15]} 4. O-O {[%emt 0:00:28]} Bg7 {[%emt 0:02:31]} 5. Bxc6 {[%emt 0:00:13]} dxc6 {[%emt 0:00:57]} 6. d3 {[%emt 0:00:13]} e5 {[%emt 0:22:19]} 7. Nbd2 {[%emt 0:01:48]} Qc7 $14 {[%emt 0:10:29]} 8. b3 {[%emt 0:01:46]} Ne7 {[%emt 0:00:47]} 9. Bb2 {[%emt 0:00:53]} f6 {[%emt 0:00:31]} 10. a4 {[%emt 0:02:20]} a5 {[%emt 0:06:59]} 11. Nc4 {[%emt 0:01:41]} g5 {[%emt 0:03:24]} 12. h4 {[%emt 0:08:34]} g4 {[%emt 0:07:24]} 13. Nfd2 {[%emt 0:01:27]} Be6 {[%emt 0:02:30]} 14. g3 {[%emt 0:05:53]} h5 {[%emt 0:00:38]} 15. Qe2 {[%emt 0:00:51]} Bh6 {[%emt 0:01:27]} 16. Rfd1 {[%emt 0:03:43]} Rg8 {[%emt 0:01:55]} 17. Ne3 {[%emt 0:03:57]} Ng6 {[%emt 0:01:32]} 18. Nf5 {[%emt 0:00:34]} Bxd2 {[%emt 0:01:20]} 19. Qxd2 {[%emt 0:03:50]} O-O-O {[%emt 0:01:23]} 20. Qh6 {[%emt 0:02:56]} Qf7 {[%emt 0:01:37]} 21. Qxh5 {[%emt 0:01:46]} Kb8 {[%emt 0:01:18]} 22. Qxg4 {[%emt 0:07:54]} Qd7 {[%emt 0:10:15]} 23. Kf1 {[%emt 0:14:29]} Ne7 {[%emt 0:00:58]} 24. Qf3 {[%emt 0:00:23]} Nxf5 {[%emt 0:00:36]} 25. exf5 {[%emt 0:00:06]} Bd5 {[%emt 0:00:26]} 26. Qe3 {[%emt 0:00:17]} Qxf5 {[%emt 0:00:15]} 27. Ke1 {[%emt 0:00:37]} b6 {[%emt 0:01:28]} 28. Kd2 {[%emt 0:05:44]} Rg4 {[%emt 0:00:36]} 29. Kc1 {[%emt 0:01:19]} Kb7 {[%emt 0:00:30]} 30. Bc3 {[%emt 0:00:51]} e4 {[%emt 0:01:26]} 31. d4 {[%emt 0:05:18]} c4 {[%emt 0:00:35]} 32. b4 {[%emt 0:00:09]} axb4 {[%emt 0:00:43]} 33. Bxb4 {[%emt 0:00:10]} Ra8 {[%emt 0:00:43]} 34. a5 {[%emt 0:04:20]} Qd7 {[%emt 0:00:36]} 35. Kb2 {[%emt 0:01:49]} b5 {[%emt 0:00:35]} 36. a6+ {[%emt 0:01:22]} Kc8 {[%emt 0:00:30]} 37. Qh6 {[%emt 0:02:17]} Qf7 {[%emt 0:00:15]} 38. Ra3 {[%emt 0:07:55]} Kd7 {[%emt 0:00:33]} 39. a7 {[%emt 0:00:20]} Kc7 {[%emt 0:00:53]} 40. Rda1 {[%emt 0:00:42]} Be6 {[%emt 0:00:37]} 41. Ra6 {[%emt 0:31:48]} Bc8 {[%emt 0:08:38]} 42. Ba5+ {[%emt 0:00:00]} Kd7 {[%emt 0:00:35]} 43. Rb6 {[%emt 0:00:00]} Rxa7 {[%emt 0:01:11]} 44. d5 {[%emt 0:00:00]} c3+ {[%emt 0:10:24]} 45. Bxc3 {[%emt 0:00:00]} Rxa1 {[%emt 0:00:08]} 46. Kxa1 {[%emt 0:00:00]} Qxd5 {[%emt 0:00:52]} 47. Qh7+ {[%emt 0:00:00]} Kd6 {[%emt 0:03:27]} 48. Rb8 {[%emt 0:00:00]} Rg8 {[%emt 0:07:48]} 49. Bb4+ {[%emt 0:00:00]} Ke5 {[%emt 0:00:45]} 50. Qc7+ {[%emt 0:00:00]} Kf5 {[%emt 0:00:11]} 51. Rxc8 {[%emt 0:00:00]} Qd4+ {[%emt 0:00:16]} 52. Ka2 {[%emt 0:00:00]} Qxb4 {[%emt 0:01:03]} 53. Qf4+ {[%emt 0:00:00]} Ke6 {[%emt 0:00:11]} 54. Rxc6+ Kd5 55. Qf5+ Kxc6 56. Qe6+ {[%emt 0:11:45]} 1/2-1/2

[Event "LTU-chT 2019"]
[Site "Lithuania"]
[Date "2019.04.28"]
[Round "7.5"]
[White "Adomaitis, Edgaras"]
[Black "Burstein, Roman"]
[Result "0-1"]
[ECO "A05"]
[WhiteElo "1889"]
[BlackElo "2298"]
[Annotator "NA"]
[PlyCount "84"]
[EventDate "2019.01.26"]
[EventType "team-tourn"]
[EventCountry "LTU"]
[SourceTitle "playchess.com"]
[Source "ChessBase"]
[SourceQuality "1"]
[TimeControl "40/5400+30:1800+30"]

1. Nf3 {[%emt 0:00:00]} Nf6 {[%emt 0:00:00]} 2. g3 {[%emt 0:00:00]} c5 {[%emt 0:00:25]} 3. c4 {[%emt 0:00:22]} g6 {[%emt 0:00:21]} 4. Nc3 {[%emt 0:01:51]} Bg7 {[%emt 0:00:25]} 5. Bg2 {[%emt 0:00:17]} O-O {[%emt 0:00:33]} 6. O-O {[%emt 0:00:41]} d5 {[%emt 0:02:18]} 7. cxd5 {[%emt 0:11:44]} Nxd5 {[%emt 0:00:09]} 8. a3 {[%emt 0:00:06]} Nc6 {[%emt 0:02:14]} 9. h3 {[%emt 0:14:42]} Nc7 {[%emt 0:06:02]} 10. d3 {[%emt 0:05:54]} b6 {[%emt 0:01:14]} 11. Bd2 {[%emt 0:02:23]} Bb7 $15 {[%emt 0:02:21]} 12. Rb1 {[%emt 0:04:38]} Rb8 {[%emt 0:09:15]} 13. b4 {[%emt 0:07:33]} Nd4 {[%emt 0:02:30]} 14. Ne4 {[%emt 0:08:17]} Bxe4 {[%emt 0:02:13]} 15. dxe4 {[%emt 0:00:01]} Nxf3+ {[%emt 0:01:42]} 16. Bxf3 {[%emt 0:07:13]} c4 {[%emt 0:01:08]} 17. b5 {[%emt 0:03:27]} c3 {[%emt 0:03:46]} 18. Bf4 {[%emt 0:00:37]} Qxd1 {[%emt 0:00:15]} 19. Rbxd1 {[%emt 0:00:07]} e5 {[%emt 0:00:10]} 20. Be3 {[%emt 0:05:09]} Nxb5 {[%emt 0:00:35]} 21. Rd3 {[%emt 0:07:24]} Rfd8 {[%emt 0:04:17]} 22. Rc1 {[%emt 0:00:23]} Rxd3 {[%emt 0:06:28]} 23. exd3 {[%emt 0:00:39]} Nd4 {[%emt 0:01:56]} 24. Kg2 {[%emt 0:03:03]} Nxf3 {[%emt 0:01:50]} 25. Kxf3 {[%emt 0:00:01]} Rc8 {[%emt 0:00:19]} 26. Bd2 {[%emt 0:00:36]} c2 {[%emt 0:00:58]} 27. Ke2 {[%emt 0:01:24]} Bf8 {[%emt 0:06:49]} 28. Bb4 {[%emt 0:00:09]} a5 {[%emt 0:01:43]} 29. Bxf8 {[%emt 0:00:10]} Kxf8 {[%emt 0:00:02]} 30. Kd2 {[%emt 0:00:09]} Ke7 {[%emt 0:00:57]} 31. Rxc2 {[%emt 0:00:26]} Rxc2+ {[%emt 0:00:46]} 32. Kxc2 {[%emt 0:00:01]} Kd6 {[%emt 0:00:26]} 33. f4 {[%emt 0:04:00]} f6 {[%emt 0:01:43]} 34. a4 {[%emt 0:02:30]} Kc6 {[%emt 0:01:48]} 35. Kb3 {[%emt 0:01:52]} b5 {[%emt 0:00:23]} 36. axb5+ {[%emt 0:01:50]} Kxb5 {[%emt 0:00:08]} 37. f5 {[%emt 0:00:35]} g5 {[%emt 0:00:28]} 38. d4 {[%emt 0:00:26]} exd4 {[%emt 0:03:12]} 39. e5 {[%emt 0:00:06]} a4+ {[%emt 0:01:45]} 40. Kc2 {[%emt 0:03:27]} Kc6 {[%emt 0:01:01]} 41. exf6 {[%emt 0:35:18]} Kd7 {[%emt 0:30:26]} 42. g4 {[%emt 0:00:00]} a3 {[%emt 0:00:00]} 0-1

[Event "LTU-chT 2019"]
[Site "Lithuania"]
[Date "2019.04.28"]
[Round "7.6"]
[White "Baginskaite, Kamile"]
[Black "Urbanaviciute, Danute"]
[Result "1-0"]
[ECO "E15"]
[WhiteElo "2136"]
[BlackElo "1730"]
[Annotator "NA"]
[PlyCount "49"]
[EventDate "2019.01.26"]
[EventType "team-tourn"]
[EventCountry "LTU"]
[SourceTitle "playchess.com"]
[Source "ChessBase"]
[SourceQuality "1"]
[TimeControl "40/5400+30:1800+30"]

1. d4 {[%emt 0:00:00]} Nf6 {[%emt 0:00:00]} 2. c4 {[%emt 0:00:00]} e6 {[%emt 0:00:00]} 3. Nf3 {[%emt 0:00:00]} b6 {[%emt 0:01:03]} 4. g3 {[%emt 0:00:41]} Bb7 {[%emt 0:00:18]} 5. Bg2 {[%emt 0:05:17]} d5 {[%emt 0:04:33]} 6. cxd5 {[%emt 0:02:58]} Nxd5 {[%emt 0:05:50]} 7. O-O {[%emt 0:07:43]} Nd7 {[%emt 0:07:23]} 8. Bg5 {[%emt 0:06:14]} f6 $16 {[%emt 0:10:12]} 9. Bd2 {[%emt 0:11:38]} Bd6 {[%emt 0:05:33]} 10. e4 {[%emt 0:08:26]} Ne7 {[%emt 0:00:55]} 11. e5 {[%emt 0:00:38]} fxe5 {[%emt 0:00:11]} 12. Ng5 {[%emt 0:00:10]} Nd5 {[%emt 0:09:59]} 13. Nxe6 {[%emt 0:13:48]} Qf6 {[%emt 0:00:40]} 14. Qg4 {[%emt 0:01:45]} g6 {[%emt 0:03:43]} 15. Bh6 {[%emt 0:05:11]} Rg8 {[%emt 0:04:45]} 16. Nc3 {[%emt 0:02:37]} c6 {[%emt 0:03:21]} 17. Ne4 {[%emt 0:07:03]} Qe7 {[%emt 0:00:31]} 18. Bg5 {[%emt 0:00:03]} N5f6 {[%emt 0:02:47]} 19. Nxf6+ {[%emt 0:00:21]} Nxf6 {[%emt 0:00:04]} 20. Bxf6 {[%emt 0:00:06]} Qxf6 {[%emt 0:00:19]} 21. dxe5 {[%emt 0:00:03]} Bxe5 {[%emt 0:00:56]} 22. Rfe1 {[%emt 0:00:40]} Kf7 {[%emt 0:10:12]} 23. Ng5+ {[%emt 0:01:02]} Ke7 {[%emt 0:03:47]} 24. f4 {[%emt 0:01:10]} Bc8 {[%emt 0:04:21]} 25. Qd1 {[%emt 0:00:29]} 1-0

[Event "LTU-chT 2019"]
[Site "Lithuania"]
[Date "2019.04.28"]
[Round "7.7"]
[White "Radzvilaviciene, Daiva"]
[Black "Ravlusevic, Evelina"]
[Result "0-1"]
[ECO "D02"]
[WhiteElo "1611"]
[BlackElo "1796"]
[Annotator "NA"]
[PlyCount "106"]
[EventDate "2019.01.26"]
[EventType "team-tourn"]
[EventCountry "LTU"]
[SourceTitle "playchess.com"]
[Source "ChessBase"]
[SourceQuality "1"]
[TimeControl "40/5400+30:1800+30"]

1. d4 {[%emt 0:00:38]} d5 {[%emt 0:00:00]} 2. Nf3 {[%emt 0:00:09]} Nf6 {[%emt 0:00:04]} 3. g3 {[%emt 0:01:55]} c5 {[%emt 0:00:14]} 4. Bg2 {[%emt 0:00:19]} e6 {[%emt 0:00:20]} 5. O-O {[%emt 0:00:13]} Nc6 {[%emt 0:02:52]} 6. e3 {[%emt 0:02:20]} Be7 {[%emt 0:02:30]} 7. b3 {[%emt 0:01:37]} b6 {[%emt 0:01:51]} 8. c4 {[%emt 0:01:12]} cxd4 {[%emt 0:08:19]} 9. Nxd4 {[%emt 0:00:37]} Nxd4 {[%emt 0:01:32]} 10. exd4 {[%emt 0:03:01]} Ba6 {[%emt 0:04:21]} 11. Re1 {[%emt 0:00:23]} Rc8 {[%emt 0:01:23]} 12. cxd5 {[%emt 0:00:20]} Nxd5 {[%emt 0:09:16]} 13. a3 {[%emt 0:00:46]} O-O {[%emt 0:03:07]} 14. Bb2 {[%emt 0:01:56]} Bf6 {[%emt 0:12:12]} 15. Qd2 {[%emt 0:02:22]} Ne7 {[%emt 0:06:10]} 16. Rd1 {[%emt 0:01:10]} Qc7 {[%emt 0:04:27]} 17. Nc3 {[%emt 0:00:54]} Nf5 {[%emt 0:01:55]} 18. Ne4 {[%emt 0:03:38]} Be7 {[%emt 0:02:53]} 19. Rac1 {[%emt 0:00:20]} Qd7 {[%emt 0:01:15]} 20. Rxc8 {[%emt 0:00:16]} Rxc8 {[%emt 0:05:11]} 21. g4 {[%emt 0:01:35]} Nh4 {[%emt 0:01:09]} 22. Bh1 {[%emt 0:03:24]} Qb5 {[%emt 0:03:39]} 23. b4 {[%emt 0:00:39]} Qe2 {[%emt 0:03:42]} 24. h3 {[%emt 0:02:15]} Rc2 {[%emt 0:01:50]} 25. Qxe2 {[%emt 0:01:41]} Rxe2 {[%emt 0:00:56]} 26. Bc1 {[%emt 0:02:40]} h6 {[%emt 0:05:04]} 27. Ng3 {[%emt 0:00:43]} Rc2 {[%emt 0:00:37]} 28. Be4 {[%emt 0:00:43]} Rc8 {[%emt 0:01:32]} 29. Bb2 {[%emt 0:01:48]} g6 {[%emt 0:01:07]} 30. Rc1 {[%emt 0:02:10]} Rxc1+ {[%emt 0:00:02]} 31. Bxc1 {[%emt 0:01:24]} f5 {[%emt 0:00:22]} 32. gxf5 {[%emt 0:00:22]} exf5 {[%emt 0:01:43]} 33. Bc6 {[%emt 0:02:22]} g5 {[%emt 0:03:05]} 34. Bb2 {[%emt 0:00:44]} Bf6 {[%emt 0:00:41]} 35. b5 {[%emt 0:00:28]} Bc8 {[%emt 0:00:45]} 36. Ne2 {[%emt 0:00:44]} f4 {[%emt 0:00:23]} 37. Kh2 {[%emt 0:01:02]} Nf5 {[%emt 0:03:02]} 38. Bc3 {[%emt 0:03:04]} Nd6 {[%emt 0:01:44]} 39. Bb4 {[%emt 0:02:03]} Be7 {[%emt 0:00:59]} 40. Kg2 {[%emt 0:00:24]} Kf8 {[%emt 0:00:00]} 41. a4 {[%emt 0:02:04]} a5 {[%emt 0:10:17]} 42. bxa6 {[%emt 0:00:19]} Bxa6 {[%emt 0:05:26]} 43. Nc3 {[%emt 0:02:00]} Bc4 {[%emt 0:05:34]} 44. a5 {[%emt 0:01:48]} bxa5 {[%emt 0:00:19]} 45. Bxa5 {[%emt 0:00:33]} Nf5 {[%emt 0:01:22]} 46. d5 {[%emt 0:02:40]} Nd4 {[%emt 0:02:06]} 47. Bd7 {[%emt 0:04:59]} f3+ {[%emt 0:03:31]} 48. Kg3 {[%emt 0:01:07]} h5 {[%emt 0:03:57]} 49. Kh2 {[%emt 0:02:50]} Bd6+ {[%emt 0:00:24]} 50. Kh1 {[%emt 0:00:50]} Ke7 {[%emt 0:01:20]} 51. Bc6 {[%emt 0:04:04]} Bf1 {[%emt 0:01:03]} 52. Ne4 {[%emt 0:00:13]} Bg2+ {[%emt 0:00:12]} 53. Kg1 {[%emt 0:00:06]} Ne2# 0-1

[Event "LTU-chT 2019"]
[Site "Lithuania"]
[Date "2019.04.28"]
[Round "7.8"]
[White "Sukyte, Kotryna"]
[Black "Marcinkeviciene, Egle"]
[Result "1/2-1/2"]
[ECO "B11"]
[WhiteElo "1324"]
[BlackElo "1495"]
[Annotator "NA"]
[PlyCount "92"]
[EventDate "2019.01.26"]
[EventType "team-tourn"]
[EventCountry "LTU"]
[SourceTitle "playchess.com"]
[Source "ChessBase"]
[SourceQuality "1"]
[TimeControl "40/5400+30:1800+30"]

1. e4 c6 2. Nc3 d5 3. Nf3 Bg4 4. h3 Bxf3 5. Qxf3 Nf6 6. exd5 Nxd5 7. Nxd5 Qxd5 8. Qxd5 cxd5 9. Bb5+ Nc6 10. d4 e6 11. O-O Be7 12. f4 O-O 13. c3 Rac8 14. f5 a6 15. Ba4 b5 16. Bb3 Na5 17. fxe6 fxe6 18. Bd2 Rxf1+ 19. Rxf1 Nxb3 20. axb3 Bh4 21. Bf4 h6 22. g3 Bf6 23. Re1 Kf7 24. b4 Rc6 25. Kf2 Bd8 26. Kf3 Bf6 27. Be5 Bxe5 28. Rxe5 g6 29. g4 g5 30. Kg3 Kf6 31. h4 Rc8 32. hxg5+ hxg5 33. Re1 Re8 34. Ra1 Ra8 35. Rh1 Kg6 36. Rc1 Rc8 37. Kg2 Rc7 38. Rh1 Rc8 39. Kg3 Kg7 40. Re1 Re8 41. Rf1 Kg6 42. Re1 Re7 43. Re2 Re8 44. Re1 Re7 45. Re2 Re8 46. Re1 Re7 1/2-1/2

[Event "LTU-chT 2019"]
[Site "Lithuania"]
[Date "2019.04.28"]
[Round "7.9"]
[White "Kaspute, Vesta"]
[Black "Perminaite, Guoda"]
[Result "1-0"]
[ECO "C44"]
[WhiteElo "2020"]
[BlackElo "1845"]
[Annotator "NA"]
[PlyCount "67"]
[EventDate "2019.01.26"]
[EventType "team-tourn"]
[EventCountry "LTU"]
[SourceTitle "playchess.com"]
[Source "ChessBase"]
[SourceQuality "1"]
[TimeControl "40/5400+30:1800+30"]

1. e4 {[%emt 0:00:00]} e5 {[%emt 0:00:00]} 2. Nf3 {[%emt 0:00:00]} Nc6 {[%emt 0:00:00]} 3. d4 {[%emt 0:00:14]} exd4 {[%emt 0:00:00]} 4. Nxd4 {[%emt 0:00:04]} Bb4+ {[%emt 0:00:19]} 5. c3 {[%emt 0:00:11]} Bc5 {[%emt 0:00:11]} 6. Be3 {[%emt 0:04:20]} Bb6 {[%emt 0:00:15]} 7. Be2 {[%emt 0:08:42]} Nf6 {[%emt 0:02:48]} 8. Nd2 {[%emt 0:00:26]} d6 {[%emt 0:09:09]} 9. O-O {[%emt 0:04:59]} h6 {[%emt 0:02:00]} 10. Re1 {[%emt 0:04:14]} O-O {[%emt 0:00:20]} 11. Nxc6 {[%emt 0:02:13]} bxc6 {[%emt 0:00:09]} 12. Bd4 {[%emt 0:02:03]} Re8 {[%emt 0:02:30]} 13. Bf3 {[%emt 0:02:58]} Bb7 $11 {[%emt 0:05:01]} 14. a4 {[%emt 0:02:03]} a5 {[%emt 0:03:22]} 15. Bxb6 {[%emt 0:04:15]} cxb6 {[%emt 0:00:25]} 16. Nc4 {[%emt 0:05:38]} d5 {[%emt 0:35:04]} 17. exd5 {[%emt 0:00:27]} Rxe1+ {[%emt 0:01:45]} 18. Qxe1 {[%emt 0:00:05]} cxd5 {[%emt 0:00:07]} 19. Rd1 {[%emt 0:07:34]} Qc7 {[%emt 0:05:40]} 20. Ne3 {[%emt 0:03:46]} Re8 {[%emt 0:02:20]} 21. Rd4 {[%emt 0:01:28]} Re5 {[%emt 0:03:15]} 22. Qd1 {[%emt 0:01:05]} Qe7 {[%emt 0:00:47]} 23. h3 {[%emt 0:01:37]} Qe6 {[%emt 0:04:30]} 24. c4 {[%emt 0:04:36]} Qe7 {[%emt 0:14:06]} 25. cxd5 {[%emt 0:05:16]} Ne8 {[%emt 0:01:46]} 26. Qb3 {[%emt 0:15:33]} Qc5 {[%emt 0:04:21]} 27. Rc4 {[%emt 0:01:17]} Qd6 {[%emt 0:01:53]} 28. Rc1 {[%emt 0:02:10]} Qd8 {[%emt 0:01:18]} 29. Nc4 {[%emt 0:05:30]} Bxd5 {[%emt 0:00:32]} 30. Qd3 {[%emt 0:00:34]} Rg5 {[%emt 0:00:31]} 31. h4 {[%emt 0:02:27]} Nc7 {[%emt 0:00:30]} 32. hxg5 {[%emt 0:00:17]} Qxg5 {[%emt 0:00:06]} 33. Rd1 {[%emt 0:01:55]} Bxf3 {[%emt 0:00:44]} 34. Qd8+ {[%emt 0:00:27]} 1-0

[Event "LTU-chT 2019"]
[Site "Lithuania"]
[Date "2019.04.28"]
[Round "7.10"]
[White "Jaskunaite, Auguste"]
[Black "Malisauskiene, Marina"]
[Result "0-1"]
[ECO "A48"]
[WhiteElo "1333"]
[BlackElo "1852"]
[Annotator "NA"]
[PlyCount "90"]
[EventDate "2019.01.26"]
[EventType "team-tourn"]
[EventCountry "LTU"]
[SourceTitle "playchess.com"]
[Source "ChessBase"]
[SourceQuality "1"]
[TimeControl "40/5400+30:1800+30"]

1. d4 {[%emt 0:00:00]} Nf6 {[%emt 0:00:00]} 2. Nf3 {[%emt 0:01:02]} g6 {[%emt 0:00:10]} 3. Bf4 {[%emt 0:01:06]} d5 {[%emt 0:00:25]} 4. c4 {[%emt 0:01:14]} c6 {[%emt 0:01:04]} 5. Nc3 {[%emt 0:00:38]} Bg7 {[%emt 0:00:22]} 6. h3 {[%emt 0:01:48]} O-O {[%emt 0:00:34]} 7. e3 {[%emt 0:00:20]} a6 {[%emt 0:02:48]} 8. Bd3 {[%emt 0:02:34]} Be6 {[%emt 0:01:55]} (8... dxc4 $11 {keeps the balance.} 9. Bxc4 Nbd7) 9. c5 {[%emt 0:06:48]} Nbd7 {[%emt 0:01:55]} 10. O-O {[%emt 0:04:59]} Bf5 {[%emt 0:03:39]} 11. Qc2 {[%emt 0:06:11]} ({White should try} 11. Bxf5 $16 gxf5 12. Ne2) 11... e6 {[%emt 0:02:30]} 12. Rad1 {[%emt 0:10:51]} Re8 $14 {[%emt 0:01:50]} 13. Bd6 {[%emt 0:13:05]} h6 {[%emt 0:01:28]} 14. Rfe1 {[%emt 0:07:17]} Nh7 {[%emt 0:10:44]} 15. b4 {[%emt 0:06:08]} Bxd3 {[%emt 0:02:35]} 16. Qxd3 {[%emt 0:00:30]} e5 {[%emt 0:00:09]} 17. e4 {[%emt 0:03:09]} exd4 {[%emt 0:04:15]} 18. Nxd4 {[%emt 0:00:21]} Qf6 {[%emt 0:00:13]} 19. Re3 {[%emt 0:05:23]} Qxd4 {[%emt 0:18:22]} 20. Qxd4 {[%emt 0:00:25]} Bxd4 {[%emt 0:00:02]} 21. Rxd4 {[%emt 0:00:01]} dxe4 {[%emt 0:00:30]} 22. Rexe4 {[%emt 0:01:52]} Ndf6 {[%emt 0:01:34]} 23. Re2 {[%emt 0:03:01]} Rxe2 {[%emt 0:01:30]} 24. Nxe2 {[%emt 0:00:02]} Nd5 {[%emt 0:00:11]} 25. Nf4 {[%emt 0:04:15]} Nhf6 {[%emt 0:01:02]} 26. Be5 {[%emt 0:00:14]} Nxf4 {[%emt 0:00:10]} 27. Bxf4 {[%emt 0:00:13]} g5 {[%emt 0:08:07]} 28. Be5 {[%emt 0:00:40]} Nd5 {[%emt 0:00:19]} 29. a3 {[%emt 0:09:10]} Re8 {[%emt 0:03:13]} 30. f4 {[%emt 0:00:32]} f6 {[%emt 0:00:19]} 31. Bd6 {[%emt 0:00:31]} Re3 {[%emt 0:00:16]} 32. a4 {[%emt 0:00:32]} Rb3 {[%emt 0:00:34]} 33. b5 {[%emt 0:01:48]} axb5 {[%emt 0:00:48]} 34. axb5 {[%emt 0:00:06]} Rxb5 {[%emt 0:00:42]} 35. fxg5 {[%emt 0:00:21]} hxg5 {[%emt 0:01:02]} 36. Kf2 {[%emt 0:01:16]} Kf7 {[%emt 0:00:27]} 37. Re4 {[%emt 0:02:34]} Rb4 {[%emt 0:09:17]} 38. Re2 {[%emt 0:01:18]} f5 {[%emt 0:10:45]} 39. Re5 {[%emt 0:02:28]} Kf6 {[%emt 0:00:03]} 40. Re8 {[%emt 0:00:08]} Rb2+ {[%emt 0:03:26]} 41. Kf3 {[%emt 0:30:23]} Rb3+ {[%emt 0:31:17]} 42. Kf2 {[%emt 0:00:13]} f4 {[%emt 0:02:18]} 43. g4 {[%emt 0:03:26]} Rxh3 {[%emt 0:03:40]} 44. Be5+ {[%emt 0:00:55]} Kf7 {[%emt 0:00:33]} 45. Rd8 {[%emt 0:01:02]} Ne3 {[%emt 0:01:32]} 0-1